bitfinex/quotes_ETHUSD_20251224
["timestamp","ask_amount","ask_price","bid_price","bid_amount"]
[1766618845797,1.0031,2950.6,2950.0,4.62700942]
[1766618846006,1.0041,2950.6,2950.0,4.62700942]
[1766618846513,1.0041,2950.6,2950.1,0.6911]
[1766618846814,1.0041,2950.6,2950.2,0.033896]
[1766618847613,1.0041,2950.6,2950.0,0.0358983]
[1766618847614,1.0031,2950.5,2950.0,0.0358983]
[1766618847817,1.0031,2950.5,2949.6,0.002]
[1766618847818,1.0369983,2950.5,2949.6,0.002]
[1766618848111,1.0031,2950.3,2949.6,0.002]
[1766618848297,1.0031,2950.1,2949.6,0.002]
[1766618853722,0.953,2950.4,2949.6,0.7226]
[1766618853935,0.953,2950.4,2949.8,0.7206]
[1766618854227,0.953,2950.4,2949.9,0.03389945]
[1766618856428,0.9868983,2950.3,2949.9,0.03389945]
[1766618857530,0.9868983,2950.3,2949.6,0.002]
[1766618857731,0.9868983,2950.3,2949.6,0.41334822]
[1766618858128,0.9957,2950.2,2949.6,0.002]
[1766618859543,3.3897156,2950.1,2949.6,0.002]
[1766618859704,0.9957,2950.0,2949.6,0.002]
[1766618861118,0.9957,2950.0,2949.6,0.0359029]
[1766618866240,0.9957,2949.9,2949.6,0.0359029]
[1766618866839,0.9957,2949.9,2949.6,0.002]
[1766618871140,1.0295983,2949.8,2949.6,0.002]
[1766618871439,1.0295983,2949.8,2949.3,0.002]
[1766618874030,3.42406134,2949.8,2949.3,0.002]
[1766618874236,0.9957,2949.7,2949.3,0.002]
[1766618874435,1.0295983,2949.6,2949.3,0.002]
[1766618876640,0.44197904,2949.5,2949.3,0.002]
[1766618880236,0.9957,2949.8,2949.3,0.002]
[1766618882558,3.42397529,2949.8,2949.3,0.002]
[1766618882727,0.9825,2949.7,2949.3,0.002]
[1766618882920,1.5163983,2949.6,2949.3,0.002]
[1766618883835,0.5338983,2949.6,2949.3,0.002]
[1766618884058,0.89239729,2949.6,2949.3,0.002]
[1766618885925,0.5,2949.6,2949.3,0.002]
[1766618888776,0.0338983,2949.5,2949.3,0.002]
[1766618889872,0.9825,2949.8,2949.3,0.6634]
[1766618890062,0.9825,2949.8,2949.3,0.002]
[1766618892369,0.9825,2949.7,2949.3,0.002]
[1766618893976,1.4198583,2949.7,2949.3,0.002]
[1766618895279,0.9825,2949.5,2948.4,0.002]
[1766618895572,0.9825,2949.3,2948.4,0.002]
[1766618895776,1.99503833,2949.6,2948.4,0.002]
[1766618895777,0.9825,2949.1,2948.4,0.002]
[1766618895975,1.0164075,2949.0,2948.4,0.002]
[1766618897168,4.40740022,2949.0,2948.4,0.002]
[1766618897352,0.9825,2948.9,2948.4,0.0359167]
[1766618903294,4.37308108,2949.4,2948.5,0.66]
[1766618903491,4.37308108,2949.4,2948.7,0.66]
[1766618903789,4.37308108,2949.4,2948.8,0.69391209]
[1766618903995,0.9825,2949.4,2948.8,0.69391209]
[1766618904160,0.9825,2949.4,2948.8,0.66]
[1766618905096,0.9825,2949.4,2948.9,0.03391094]
[1766618905891,0.5,2949.2,2948.9,0.03391094]
[1766618906389,0.5,2949.2,2948.8,0.66]
[1766618906595,0.5,2949.2,2948.8,1.15373901]
[1766618906962,0.5,2949.2,2948.9,0.03391094]
[1766618909061,3.4792384,2949.6,2948.9,0.69111094]
[1766618909266,4.4617384,2949.6,2948.9,0.69111094]
[1766618909695,0.9825,2949.5,2948.9,0.69111094]
[1766618909890,0.9825,2949.5,2948.9,1.14871801]
[1766618913469,0.9835,2949.5,2948.9,1.14871801]
[1766618914473,0.9835,2949.5,2949.0,0.1546]
[1766618914675,0.9835,2949.5,2949.1,0.03390865]
[1766618915073,0.9835,2949.5,2949.0,0.03390979]
[1766618915483,1.0145,2949.4,2949.0,0.03390979]
[1766618917496,1.0145,2949.4,2948.8,0.03391209]
[1766618917703,1.0145,2949.3,2948.8,0.44659106]
[1766618917882,1.0145,2949.3,2948.5,0.1534]
[1766618919190,1.0145,2949.3,2948.5,3.54493626]
[1766618919504,1.0145,2949.2,2948.5,0.1534]
[1766618921505,1.0145,2949.2,2948.5,3.54694136]
[1766618921707,1.0145,2949.2,2948.5,0.002]
[1766618921885,1.0145,2949.2,2948.6,0.42816126]
[1766618924216,0.9201,2949.1,2948.7,0.03391324]
[1766618924381,0.9201,2949.1,2948.6,0.0339144]
[1766618926219,0.9201,2949.1,2948.6,0.1838144]
[1766618926724,4.31096798,2949.1,2948.6,0.1838144]
[1766618927907,0.9201,2949.3,2948.6,0.0339144]
[1766618928084,0.9201,2949.3,2948.5,0.03591555]
[1766618928286,0.9201,2949.3,2948.5,0.002]
[1766618929890,3.39075003,2949.2,2948.5,0.002]
[1766618930091,0.9201,2949.1,2948.5,0.002]
[1766618931304,4.31100398,2949.1,2948.5,0.002]
[1766618931628,0.9201,2949.0,2948.5,0.002]
[1766618934007,0.9201,2948.9,2948.5,0.002]
[1766618946743,0.9201,2948.9,2948.4,0.002]
[1766618947061,0.9201,2948.9,2948.5,0.002]
[1766618947259,0.9201,2948.9,2948.4,0.002]
[1766618947466,0.5,2948.7,2948.4,0.002]
[1766618948778,0.5,2948.7,2948.4,0.34477781]
[1766618948940,0.9691,2949.1,2948.5,0.03391555]
[1766618949448,0.9681,2949.0,2948.5,0.03391555]
[1766618949660,0.9681,2949.0,2948.4,0.0359167]
[1766618949877,0.9681,2949.0,2948.4,0.002]
[1766618950744,0.001,2949.4,2948.4,1.23076961]
[1766618950968,0.001,2949.4,2948.5,0.03391555]
[1766618951171,0.9691,2949.4,2948.5,0.03391555]
[1766618951388,0.001,2949.4,2948.5,0.03391555]
[1766618952658,0.001,2949.4,2948.6,3.39144]
[1766618952843,0.001,2949.4,2948.7,0.68168591]
[1766618953062,0.001,2949.4,2948.8,0.91991209]
[1766618953063,0.9691,2949.4,2948.8,0.91991209]
[1766618954845,0.9691,2949.4,2948.8,4.31109161]
[1766618955045,0.001,2949.4,2948.8,4.31109161]
[1766618955265,0.001,2949.5,2948.8,4.31109161]
[1766618955572,0.001,2949.5,2948.9,0.83840853]
[1766618955763,0.001,2949.5,2949.0,0.03390979]
[1766618956468,0.9691,2949.5,2949.0,0.03390979]
[1766618958371,0.9691,2949.5,2949.0,3.42485434]
[1766618958372,0.001,2949.5,2949.0,3.42485434]
[1766618959457,0.001,2949.6,2949.0,3.42485434]
[1766618959663,0.001,2949.6,2949.1,0.42632629]
[1766618959873,0.001,2949.6,2949.2,0.0339075]
[1766618961471,0.001,2949.6,2948.9,0.03391094]
[1766618962079,0.001,2949.5,2948.9,0.03391094]
[1766618962447,0.9691,2949.5,2948.8,4.27717301]
[1766618962647,0.9691,2949.5,2948.9,0.4277173]
[1766618964772,0.9691,2949.5,2948.8,0.886]
[1766618965374,0.9691,2949.5,2948.7,3.39130449]
[1766618965581,0.9681,2949.4,2948.8,0.886]
[1766618966375,0.9681,2949.4,2948.9,0.03391094]
[1766618966555,0.9681,2949.3,2948.5,4.31341535]
[1766618966761,1.0560002,2949.3,2948.6,0.43154153]
[1766618966962,1.0560002,2949.3,2948.7,0.03391324]
[1766618967479,0.9681,2949.3,2948.7,0.03391324]
[1766618967682,0.9681,2949.3,2948.7,3.42522776]
[1766618969080,3.47935904,2949.5,2948.7,4.19570517]
[1766618969473,4.44745904,2949.5,2948.7,4.19570517]
[1766618969679,3.47935904,2949.5,2948.7,4.19570517]
[1766618969862,0.9681,2949.4,2948.7,4.19570517]
[1766618970066,0.9681,2949.4,2948.7,0.03391324]
[1766618971397,0.9681,2949.3,2948.7,0.03391324]
[1766618972297,0.9681,2949.3,2948.7,3.42522561]
[1766618973596,0.9681,2949.3,2948.7,0.03391324]
[1766618973971,0.9681,2949.3,2948.8,0.03391209]
[1766618974168,0.9681,2949.3,2948.6,3.42526967]
[1766618974369,0.9681,2949.3,2948.7,0.77047879]
[1766618974668,0.9681,2949.3,2948.8,0.03391209]
[1766618974864,0.985,2949.5,2948.8,0.03391209]
[1766618975198,4.37542706,2949.5,2948.8,0.03391209]
[1766618975380,0.984,2949.4,2948.8,0.03391209]
[1766618979702,0.9696,2949.3,2948.6,0.002]
[1766618983576,0.9696,2949.3,2948.6,0.0359144]
[1766618986273,0.9696,2949.3,2948.6,0.002]
[1766618987210,0.9696,2949.3,2948.6,3.39342153]
[1766618988047,0.9696,2949.3,2948.7,0.42814215]
[1766618989187,0.9696,2949.3,2948.7,3.81943279]
[1766618989378,0.9696,2949.3,2948.8,0.03391209]
[1766618992211,0.9696,2949.3,2948.7,0.42814215]
[1766618993727,0.9696,2949.3,2948.8,0.03391209]
[1766618994014,0.9696,2949.2,2948.8,0.03391209]
[1766618994176,0.44490505,2949.3,2948.6,0.0359144]
[1766618994381,0.9696,2949.4,2948.6,3.42729516]
[1766618995482,0.9696,2949.3,2948.6,3.42729516]
[1766618995790,0.9696,2949.3,2948.6,0.0359144]
[1766618996014,1.0575002,2949.3,2948.6,0.0359144]
[1766618996994,1.0575002,2949.3,2948.6,0.002]
[1766618998517,0.9696,2949.2,2948.6,0.002]
[1766618998891,0.9696,2949.2,2948.6,0.0359144]
[1766619000622,0.9696,2949.2,2948.6,0.002]
[1766619001016,3.39052097,2949.4,2948.6,0.002]
[1766619001327,4.36012097,2949.4,2948.6,0.0359144]
[1766619001501,5.13536383,2949.4,2948.6,0.0359144]
[1766619001827,1.74484286,2949.4,2948.6,0.0359144]
[1766619002033,0.9696,2949.4,2948.6,0.0359144]
[1766619002699,0.9696,2949.4,2948.7,3.39132499]
[1766619002894,0.9696,2949.4,2948.8,0.03391209]
[1766619003315,0.9909,2949.3,2948.7,0.03391324]
[1766619003518,0.9909,2949.3,2948.6,0.002]
[1766619005118,1.0788002,2949.3,2948.6,0.002]
[1766619005318,1.0788002,2949.3,2948.7,0.33954929]
[1766619005692,1.0788002,2949.3,2948.8,0.03391209]
[1766619006125,1.0788002,2949.3,2948.6,0.0359144]
[1766619008200,1.0788002,2949.3,2948.6,0.002]
[1766619008533,0.9909,2949.0,2948.6,0.002]
[1766619011919,0.9909,2949.0,2948.6,0.0359144]
[1766619012120,0.9909,2949.2,2948.6,0.4676693]
[1766619018635,0.0879002,2949.3,2948.6,0.4676693]
[1766619020030,1.0788002,2949.3,2948.6,0.4676693]
[1766619024338,0.9909,2949.2,2948.6,0.0359144]
[1766619025050,1.0788002,2948.9,2948.6,0.002]
[1766619025348,1.0788002,2948.9,2948.5,0.002]
[1766619026546,0.9909,2949.1,2948.5,0.002]
[1766619036734,0.9861,2949.3,2948.5,0.002]
[1766619037061,0.9861,2949.3,2948.6,0.68212468]
[1766619038949,0.9861,2949.3,2948.6,4.07349946]
[1766619040240,0.9861,2949.3,2948.6,0.68212468]
[1766619040959,0.9861,2949.3,2948.6,4.07355904]
[1766619041356,0.9779002,2949.5,2948.7,0.03391324]
[1766619041556,0.9779002,2949.5,2948.7,0.54666357]
[1766619041557,0.9672,2949.5,2948.7,0.54666357]
[1766619043273,0.9672,2949.5,2948.8,3.39120998]
[1766619043475,0.9672,2949.5,2948.9,0.03391094]
[1766619044877,0.001,2949.6,2948.9,0.03391094]
[1766619045077,0.001,2949.6,2949.0,0.68163309]
[1766619045252,0.001,2949.6,2949.1,0.03390865]
[1766619045449,0.001,2949.9,2949.2,0.886]
[1766619045654,0.9672,2950.3,2949.3,0.03390635]
[1766619045870,0.9672,2950.3,2949.3,1.05158512]
[1766619046088,0.001,2950.3,2949.4,0.19375851]
[1766619046274,0.001,2950.3,2949.5,0.03390405]
[1766619046576,0.001,2950.3,2949.6,0.886]
[1766619046778,0.001,2950.3,2949.7,0.03390175]
[1766619047184,0.001,2950.3,2949.8,0.886]
[1766619047373,0.001,2950.3,2949.9,0.03389945]
[1766619047556,0.001,2950.3,2949.9,0.46489366]
[1766619049379,0.001,2950.3,2949.8,0.886]
[1766619049380,1.0541002,2950.2,2949.8,0.80348879]
[1766619049584,1.0541002,2950.2,2948.5,0.002]
[1766619049585,0.9662,2950.0,2949.4,0.886]
[1766619049956,0.9662,2950.0,2949.3,3.39057098]
[1766619050163,0.9662,2950.0,2949.4,0.3390571]
[1766619050397,1.00010695,2949.9,2949.1,0.80348879]
[1766619050691,1.00010695,2949.9,2949.2,0.0339075]
[1766619051489,1.00010695,2949.9,2949.2,3.42465433]
[1766619054293,1.00110695,2949.9,2949.2,3.42465433]
[1766619055480,1.00110695,2949.9,2949.3,1.01788249]
[1766619055678,1.00110695,2949.9,2949.4,0.0339052]
[1766619058603,3.87279164,2949.9,2949.4,0.0339052]
[1766619058804,0.9662,2949.8,2949.3,1.01788249]
[1766619058996,1.00010695,2949.7,2949.3,1.01788249]
[1766619059681,1.00010695,2949.7,2949.1,0.886]
[1766619059906,1.00010695,2949.7,2949.2,1.01788595]
[1766619060274,1.0541002,2949.6,2948.7,3.39126202]
[1766619060489,0.9662,2949.4,2948.8,0.91991209]
[1766619060903,0.9662,2949.4,2948.9,0.9662]
[1766619061202,0.9662,2949.4,2949.0,0.03390979]
[1766619062604,0.9662,2949.4,2948.9,0.03391094]
[1766619067010,0.9662,2949.4,2948.9,3.42498145]
[1766619068207,0.9662,2949.4,2948.9,0.03391094]
[1766619069315,0.9662,2949.4,2948.9,0.03591094]
[1766619070312,0.9662,2949.4,2948.9,3.42699732]
[1766619070485,0.9662,2949.4,2948.9,0.03591094]
[1766619080389,0.99530695,2949.6,2948.9,0.03591094]
[1766619081214,1.49113975,2949.6,2948.9,0.03591094]
[1766619081390,4.88144841,2949.6,2948.9,0.03591094]
[1766619084530,1.49113975,2949.6,2948.9,0.03591094]
[1766619085297,4.88144608,2949.6,2948.9,0.03591094]
[1766619087323,0.9614,2949.5,2948.9,0.002]
[1766619087525,0.99530695,2949.4,2948.9,0.002]
[1766619089813,0.5,2949.2,2948.9,0.002]
[1766619091533,0.97600695,2949.5,2948.9,0.002]
[1766619091827,1.76045344,2949.5,2948.9,0.002]
[1766619092207,0.9421,2949.4,2948.9,0.002]
[1766619092528,0.03390695,2949.3,2948.9,0.002]
[1766619094731,0.03390695,2949.6,2948.9,0.002]
[1766619094937,0.97600695,2949.6,2948.9,0.002]
[1766619096433,4.36629863,2949.6,2948.9,0.002]
[1766619097405,5.15082612,2949.6,2948.9,0.002]
[1766619097605,1.76053444,2949.6,2948.9,0.002]
[1766619098440,0.81843444,2949.6,2948.9,0.002]
[1766619098737,0.03390695,2949.6,2948.9,0.002]
[1766619100447,0.03490695,2949.6,2948.9,0.002]
[1766619108458,0.5,2949.4,2948.9,0.002]
[1766619108665,0.03390695,2949.3,2948.9,0.002]
[1766619110254,0.5,2949.4,2948.9,0.002]
[1766619110562,0.5,2949.4,2949.0,0.68183267]
[1766619117190,0.5,2949.4,2949.0,0.68383267]
[1766619117373,0.501,2949.4,2949.0,0.68383267]
[1766619118793,0.001,2949.6,2949.0,4.0748016]
[1766619118961,0.9387,2949.8,2949.1,0.03390865]
[1766619119161,0.9387,2949.8,2949.2,0.41087102]
[1766619121498,0.9387,2949.8,2949.2,3.80160132]
[1766619122296,0.9387,2949.8,2949.2,0.41087102]
[1766619123667,0.9387,2949.8,2949.2,3.80160269]
[1766619123867,0.9387,2949.8,2949.2,0.41087102]
[1766619125714,0.96380695,2949.7,2949.0,0.03590979]
[1766619128027,0.9299,2949.6,2949.0,0.03590979]
[1766619128234,0.9299,2949.4,2949.0,0.002]
[1766619128526,0.9299,2949.2,2949.0,0.002]
[1766619132208,0.5,2949.1,2949.0,0.002]
[1766619137328,0.96380695,2949.4,2949.0,0.002]
[1766619148968,0.03390695,2949.4,2949.0,0.34491098]
[1766619149157,0.9309,2949.7,2949.1,0.03390865]
[1766619152918,0.001,2949.8,2949.1,0.03390865]
[1766619153048,0.001,2950.3,2949.1,6.81559129]
[1766619153378,0.9473,2950.3,2949.1,6.78168264]
[1766619153583,0.9473,2950.3,2949.2,2.15810469]
[1766619153772,0.9473,2950.3,2949.3,0.03390635]
[1766619153973,0.9473,2950.3,2949.4,0.886]
[1766619154289,0.9473,2950.3,2949.5,0.03390405]
[1766619154458,0.9473,2950.3,2949.5,3.42426413]
[1766619154658,0.9473,2950.3,2949.6,0.53280154]
[1766619154983,0.9473,2950.3,2949.7,0.03390175]
[1766619158081,0.9473,2950.3,2949.7,3.42406701]
[1766619158285,0.9473,2950.3,2949.7,0.03390175]
[1766619159149,0.9473,2950.3,2949.7,3.42407672]
[1766619159352,0.9473,2950.3,2949.8,0.39568783]
[1766619160157,0.9473,2950.3,2949.8,3.78574767]
[1766619160358,0.9473,2950.3,2949.8,0.39568783]
[1766619160659,0.001,2950.4,2949.8,0.39568783]
[1766619161081,0.001,2950.4,2949.9,0.03389945]
[1766619161289,0.001,2950.4,2950.0,0.47056036]
[1766619161605,0.001,2950.4,2950.1,0.03389715]
[1766619162588,3.38987865,2950.9,2950.1,0.03389715]
[1766619162589,0.001,2951.0,2950.1,6.81329978]
[1766619162891,0.001,2951.0,2950.2,0.886]
[1766619162892,0.9765,2951.0,2950.2,0.886]
[1766619163053,0.9765,2951.0,2950.3,0.89808511]
[1766619163054,0.9755,2950.9,2950.3,0.89808511]
[1766619163258,0.9755,2950.9,2950.2,0.886]
[1766619163461,0.9755,2950.9,2949.0,0.002]
[1766619163462,1.0634002,2950.9,2949.9,0.886]
[1766619163691,0.0879002,2950.7,2949.9,0.886]
[1766619163855,0.001,2950.3,2949.9,4.27594162]
[1766619164055,0.9755,2950.5,2950.0,0.0338983]
[1766619170865,0.9765,2950.5,2950.0,0.0338983]
[1766619174594,0.9765,2950.5,2949.9,0.886]
[1766619175609,0.9765,2950.5,2950.0,0.0338983]
[1766619178602,0.9765,2950.5,2949.9,0.886]
[1766619179400,0.9765,2950.5,2950.0,0.0338983]
[1766619184092,0.9765,2950.5,2950.0,3.42372189]
[1766619184271,0.9765,2950.5,2950.0,0.0358983]
[1766619192108,0.9062,2950.9,2950.1,0.4311788]
[1766619192318,0.9062,2950.9,2950.0,3.42572517]
[1766619192497,0.9062,2950.8,2950.0,3.42572517]
[1766619198113,0.9062,2950.8,2950.0,6.81555567]
[1766619198290,0.9062,2950.8,2950.0,3.39182687]
[1766619198491,0.9062,2950.8,2950.0,3.42572517]
[1766619198688,0.9062,2950.8,2950.1,0.77016328]
[1766619199012,0.9072,2950.8,2950.1,0.77016328]
[1766619199214,3.38992061,2950.8,2950.1,0.77016328]
[1766619199513,3.38992061,2950.8,2950.0,3.42572517]
[1766619199514,0.9062,2950.7,2950.0,3.42572517]
[1766619201616,0.9062,2950.7,2950.1,3.38969679]
[1766619202994,0.9062,2950.7,2950.1,3.42359394]
[1766619204014,0.9062,2950.7,2950.1,6.77941239]
[1766619204216,0.001,2950.8,2950.2,0.033896]
[1766619204536,0.001,2950.8,2950.3,0.68133084]
[1766619205533,0.001,2951.0,2950.4,0.9198937]
[1766619206026,0.001,2951.1,2950.5,3.38925605]
[1766619206226,0.001,2951.1,2950.6,0.03389141]
[1766619206725,0.001,2950.8,2950.6,0.03389141]
[1766619206934,0.001,2951.3,2950.7,0.71513061]
[1766619207097,0.001,2951.4,2950.8,0.886]
[1766619207431,0.001,2951.4,2950.9,0.03388796]
[1766619208633,0.001,2951.5,2951.0,3.3886818]
[1766619208804,0.001,2951.5,2951.0,3.42256861]
[1766619209000,0.001,2951.5,2951.1,0.68113581]
[1766619209207,0.001,2951.6,2951.2,0.03388452]
[1766619209532,0.001,2951.7,2951.2,0.03388452]
[1766619211340,0.001,2951.7,2951.2,3.42233334]
[1766619211510,0.001,2951.7,2951.3,0.41034692]
[1766619212519,0.001,2951.7,2951.2,0.91988452]
[1766619213503,0.001,2951.7,2951.2,4.30833205]
[1766619218730,0.9666,2951.7,2951.2,0.03388452]
[1766619218947,0.9666,2951.7,2951.0,0.886]
[1766619219417,0.9666,2951.7,2950.6,0.9062]
[1766619219618,0.9656,2951.5,2950.7,0.03389026]
[1766619220142,0.9656,2951.5,2950.6,4.27510297]
[1766619220469,0.9656,2951.3,2950.6,0.886]
[1766619220741,0.9656,2951.3,2951.1,0.002]
[1766619231757,0.9656,2951.6,2951.1,0.002]
[1766619233360,0.9656,2951.5,2951.1,0.002]
[1766619234057,0.9656,2951.4,2951.1,0.002]
[1766619234256,0.9656,2951.4,2951.0,0.002]
[1766619249876,0.9656,2951.4,2950.7,4.30891027]
[1766619252782,0.9656,2951.4,2950.7,0.91989026]
[1766619253281,0.9656,2951.4,2950.7,1.68970967]
[1766619253884,0.9656,2951.4,2950.7,5.07871119]
[1766619254594,0.9656,2951.4,2950.7,1.68970967]
[1766619255355,0.9461,2951.3,2950.7,0.91989026]
[1766619255756,1.0340002,2951.3,2950.6,0.002]
[1766619256787,0.9461,2951.1,2950.6,0.002]
[1766619257088,0.9461,2951.1,2950.1,4.40710827]
[1766619257089,1.0340002,2951.1,2949.8,3.39203504]
[1766619257292,0.9461,2950.9,2950.0,4.31064913]
[1766619261881,3.38884644,2950.9,2950.0,4.31064913]
[1766619262071,0.9461,2950.8,2950.0,4.31064913]
[1766619264896,0.9461,2950.9,2950.0,4.31064913]
[1766619265094,0.9461,2950.7,2950.0,4.31064913]
[1766619267894,3.38904383,2950.7,2950.0,0.9208983]
[1766619268093,0.9461,2950.6,2950.0,0.9208983]
[1766619268270,0.9461,2950.6,2950.0,4.31070347]
[1766619269610,0.9461,2950.6,2950.0,4.31067237]
[1766619270983,0.9461,2950.6,2950.0,5.08113789]
[1766619272112,0.5,2950.4,2950.0,5.08113789]
[1766619277203,0.9437,2951.0,2950.0,8.47096839]
[1766619277412,0.9437,2951.0,2950.0,8.43707009]
[1766619277720,0.9437,2951.0,2950.1,0.03389715]
[1766619277904,0.9437,2951.0,2950.1,0.88119387]
[1766619279325,3.38873384,2951.0,2950.1,4.27083339]
[1766619279626,0.9118,2950.9,2950.1,4.27083339]
[1766619281321,0.001,2950.4,2950.1,4.27083339]
[1766619281925,0.001,2950.4,2950.1,0.88119387]
[1766619282107,0.001,2950.4,2950.2,0.51579273]
[1766619284926,0.001,2950.4,2950.3,0.03389485]
[1766619288631,0.001,2950.4,2950.2,0.54968873]
[1766619289096,0.001,2950.4,2950.2,0.51579273]
[1766619290028,0.001,2950.4,2950.3,0.03389485]
[1766619291637,0.001,2950.4,2950.2,0.54968873]
[1766619291825,0.001,2950.4,2950.2,0.51579273]
[1766619303547,0.999,2950.4,2950.1,0.03589715]
[1766619307340,0.999,2950.4,2950.1,3.42560024]
[1766619307804,0.998,2951.2,2950.1,6.81531584]
[1766619308011,0.998,2951.2,2950.1,10.17113429]
[1766619308238,0.998,2951.2,2950.1,11.18859044]
[1766619308443,0.001,2951.4,2950.2,1.20765904]
[1766619308638,0.001,2951.4,2950.3,0.03389485]
[1766619308947,0.001,2951.6,2950.4,0.886]
[1766619309127,0.001,2951.7,2950.5,0.03389256]
[1766619309742,0.001,2951.7,2950.6,1.01724743]
[1766619310039,0.001,2951.7,2950.8,6.77782296]
[1766619310239,0.001,2951.7,2950.9,1.60105928]
[1766619313345,0.001,2951.7,2951.0,3.3886818]
[1766619313535,0.001,2951.7,2951.1,0.03388566]
[1766619315231,0.001,2951.7,2951.2,0.03388452]
[1766619315426,0.001,2951.7,2951.0,0.03388681]
[1766619315630,0.001,2951.7,2951.1,0.49898021]
[1766619316051,0.998,2951.6,2950.6,3.38909476]
[1766619316232,0.998,2951.6,2950.7,0.91989026]
[1766619316653,0.998,2951.6,2950.7,4.30888945]
[1766619317847,0.998,2951.5,2950.7,4.30888945]
[1766619318152,0.998,2951.5,2950.7,5.07869521]
[1766619320353,0.998,2951.5,2950.7,8.46772154]
[1766619320521,0.998,2951.5,2950.7,8.43383128]
[1766619320723,0.998,2951.5,2950.8,0.03388911]
[1766619322956,0.998,2951.5,2950.8,3.4227948]
[1766619323124,0.998,2951.5,2950.8,4.26956511]
[1766619325352,0.998,2951.5,2950.8,4.27156511]
[1766619342373,0.998,2951.5,2950.8,4.237676]
[1766619344169,3.38812865,2951.5,2950.8,0.84877031]
[1766619344382,0.9836,2951.4,2950.9,0.03388796]
[1766619344554,0.9836,2951.4,2950.8,0.03588911]
[1766619345382,0.9836,2951.4,2950.8,3.42479666]
[1766619351484,0.001,2951.6,2950.8,6.81370814]
[1766619351660,0.001,2951.6,2950.8,6.77981903]
[1766619351982,0.001,2951.6,2951.0,3.3886818]
[1766619352166,0.001,2951.6,2951.1,0.91988566]
[1766619352994,0.9846,2951.6,2951.1,0.886]
[1766619356589,4.37259746,2951.6,2951.1,0.886]
[1766619356789,0.9836,2951.5,2951.1,0.886]
[1766619359194,0.001,2951.6,2951.1,0.886]
[1766619362086,0.001,2951.6,2951.2,0.03388452]
[1766619363189,0.9731,2951.6,2951.1,0.91988566]
[1766619363396,0.9731,2951.6,2951.1,0.886]
[1766619363795,4.36112656,2951.6,2951.1,0.886]
[1766619363975,0.9721,2951.5,2951.1,0.886]
[1766619364177,0.9721,2951.4,2950.8,0.002]
[1766619364396,0.9721,2951.4,2950.9,0.886]
[1766619364601,0.9721,2951.4,2951.0,0.03388681]
[1766619379914,0.9721,2951.4,2951.0,0.03588681]
[1766619392750,0.9582,2951.6,2951.0,0.03588681]
[1766619401852,0.9582,2951.6,2951.0,3.85601223]
[1766619403145,0.9582,2951.6,2951.0,0.46735482]
[1766619403830,0.001,2951.6,2951.0,3.85597017]
[1766619404031,0.001,2951.6,2951.0,0.46735482]
[1766619405248,0.9913,2951.5,2951.0,0.03588681]
[1766619406956,0.9913,2951.5,2951.0,3.42455408]
[1766619408137,0.9913,2951.5,2951.0,0.03588681]
[1766619408866,0.9913,2951.5,2951.0,3.42455917]
[1766619409359,0.9913,2951.5,2951.0,4.19489849]
[1766619410267,0.001,2951.6,2951.0,4.19489849]
[1766619410567,0.001,2951.7,2951.0,4.19489849]
[1766619411071,0.9923,2951.7,2951.0,0.80622613]
[1766619411359,0.9923,2951.7,2951.0,0.03588681]
[1766619411554,0.9923,2951.7,2951.0,0.92188681]
[1766619412365,3.38892012,2951.7,2951.0,0.92188681]
[1766619412558,0.9913,2951.6,2951.0,0.92188681]
[1766619414367,3.38800543,2951.6,2951.0,0.92188681]
[1766619414537,0.9913,2951.5,2951.0,0.92188681]
[1766619417566,0.9913,2951.5,2951.0,1.35336334]
[1766619421175,0.9913,2951.5,2951.0,1.31947653]
[1766619421375,0.9913,2951.4,2951.0,0.002]
[1766619421678,0.9913,2951.4,2951.0,0.03588681]
[1766619431292,0.9913,2951.4,2950.9,0.888]
[1766619431293,0.9913,2951.4,2950.9,0.845366]
[1766619431466,0.9383,2951.2,2950.8,0.002]
[1766619431665,0.9383,2951.0,2950.8,0.002]
[1766619434091,1.37437162,2951.0,2950.8,0.002]
[1766619435970,0.9383,2951.0,2950.8,0.002]
[1766619436495,0.9383,2951.3,2950.8,0.002]
[1766619438273,0.9383,2951.3,2950.8,0.03588911]
[1766619439593,0.9383,2951.3,2950.8,0.002]
[1766619445795,0.9383,2951.3,2950.8,0.03588911]
[1766619446884,0.9393,2951.3,2950.8,0.03588911]
[1766619455702,0.97318696,2951.3,2950.8,0.03588911]
[1766619455900,0.9632,2951.2,2950.8,0.03588911]
[1766619456300,0.9632,2951.2,2950.8,0.002]
[1766619456499,0.99708696,2951.1,2950.8,0.002]
[1766619459897,0.99708696,2951.1,2950.5,1.01738542]
[1766619462911,0.99708696,2951.1,2950.5,1.01938542]
[1766619463209,0.99808696,2951.1,2950.5,1.01938542]
[1766619463583,0.99808696,2951.1,2950.6,0.03389141]
[1766619472707,0.03488696,2951.1,2950.6,3.42302469]
[1766619472909,0.001,2951.1,2950.6,4.29480175]
[1766619473223,0.001,2951.3,2950.6,7.68394294]
[1766619473519,0.001,2951.3,2950.6,8.6673852]
[1766619474494,0.001,2951.3,2950.7,0.03389026]
[1766619474714,0.001,2951.3,2950.8,4.25902573]
[1766619474918,0.001,2951.3,2950.9,0.03388796]
[1766619481728,0.001,2951.3,2950.8,0.03588911]
[1766619483129,0.9902,2951.3,2950.8,0.03588911]
[1766619487225,0.001,2951.3,2950.8,0.03588911]
[1766619492538,0.9892,2951.2,2950.8,0.03588911]
[1766619492726,0.001,2951.3,2950.8,0.03588911]
[1766619494941,0.9902,2951.3,2950.8,0.03588911]
[1766619517048,0.9902,2951.3,2950.8,3.42475358]
[1766619517364,0.9902,2951.3,2950.8,0.03588911]